[Event "Titled Tuesday Blitz February 28 Early 2023"]
[White "Novikov, Evgenij"]
[Black "Manon-og, Ramon Jr."]
[WhiteFideId "4125380"]
[BlackFideId "5200776"]
[WhiteElo "2242"]
[BlackElo "2330"]
[Result "1-0"]
[Round "10"]
[TimeControl "180+2"]
[Date "2023.02.28"]
[WhiteClock "0:00:10"]
[BlackClock "0:00:06"]

1. d4 {[%clk 0:03:00]}  Nf6 {[%clk 0:02:55]} 2. c4 {[%clk 0:03:00]}  g6 {[%clk 0:02:55]} 3. Nc3 {[%clk 0:03:00]}  d5 {[%clk 0:02:56]} 4. cxd5 {[%clk 0:03:00]}  Nxd5 {[%clk 0:02:57]} 5. Nf3 {[%clk 0:02:59]}  Bg7 {[%clk 0:02:57]} 6. h4 {[%clk 0:02:57]}  Nxc3 {[%clk 0:02:57]} 7. bxc3 {[%clk 0:02:57]}  h5 {[%clk 0:02:58]} 8. e4 {[%clk 0:02:53]}  O-O {[%clk 0:02:58]} 9. Bc4 {[%clk 0:02:53]}  c5 {[%clk 0:02:58]} 10. Ne5 {[%clk 0:02:35]}  cxd4 {[%clk 0:02:54]} 11. Nxg6 {[%clk 0:02:32]}  Re8 {[%clk 0:02:06]} 12. Qxh5 {[%clk 0:02:29]}  e6 {[%clk 0:02:01]} 13. Rh3 {[%clk 0:01:44]}  fxg6 {[%clk 0:01:53]} 14. Qxg6 {[%clk 0:01:41]}  Re7 {[%clk 0:01:45]} 15. Rg3 {[%clk 0:01:04]}  Qe8 {[%clk 0:01:39]} 16. Qg4 {[%clk 0:00:51]}  Kh8 {[%clk 0:01:10]} 17. Bg5 {[%clk 0:00:44]}  e5 {[%clk 0:01:05]} 18. Qe2 {[%clk 0:00:41]}  Rc7 {[%clk 0:01:03]} 19. h5 {[%clk 0:00:35]}  Be6 {[%clk 0:01:00]} 20. h6 {[%clk 0:00:31]}  Bxh6 {[%clk 0:00:46]} 21. Bxe6 {[%clk 0:00:22]}  Qxe6 {[%clk 0:00:43]} 22. Qh5 {[%clk 0:00:22]}  Kh7 {[%clk 0:00:42]} 23. Rh3 {[%clk 0:00:17]}  Rc6 {[%clk 0:00:38]} 24. Bxh6 {[%clk 0:00:16]}  Qxh3 {[%clk 0:00:05]} 25. gxh3 {[%clk 0:00:14]}  Rxh6 {[%clk 0:00:06]} 26. Qf7+ {[%clk 0:00:14]}  Kh8 {[%clk 0:00:06]} 27. Qxb7 {[%clk 0:00:14]}  Nc6 {[%clk 0:00:05]} 28. Qxa8+ {[%clk 0:00:12]}  Kh7 {[%clk 0:00:06]} 29. O-O-O {[%clk 0:00:10]} 1-0


[Site "https://www.chess.com"]

[Event "Titled Tuesday Blitz February 28 Early 2023"]
[White "Levitan, Caleb Levi"]
[Black "Miszler, Levente"]
[WhiteFideId "14332620"]
[BlackFideId "763276"]
[WhiteElo "1963"]
[BlackElo "2176"]
[Result "1-0"]
[Round "10"]
[TimeControl "180+2"]
[Date "2023.02.28"]
[WhiteClock "0:00:08"]
[BlackClock "0:01:38"]

1. d4 {[%clk 0:03:00]}  Nf6 {[%clk 0:02:57]} 2. Bf4 {[%clk 0:03:00]}  Nd5 {[%clk 0:02:56]} 3. Bg3 {[%clk 0:02:56]}  c5 {[%clk 0:02:50]} 4. e4 {[%clk 0:02:39]}  Nf6 {[%clk 0:02:49]} 5. Nc3 {[%clk 0:02:23]}  cxd4 {[%clk 0:02:46]} 6. Qxd4 {[%clk 0:02:22]}  Nc6 {[%clk 0:02:46]} 7. Qd2 {[%clk 0:02:21]}  e5 {[%clk 0:02:40]} 8. Nf3 {[%clk 0:02:16]}  Qa5 {[%clk 0:02:38]} 9. Nd5 {[%clk 0:01:28]}  Qxd2+ {[%clk 0:02:32]} 10. Nxd2 {[%clk 0:01:27]}  Nxd5 {[%clk 0:02:30]} 11. exd5 {[%clk 0:01:28]}  Nb4 {[%clk 0:02:31]} 12. O-O-O {[%clk 0:01:24]}  Nxd5 {[%clk 0:02:31]} 13. Bxe5 {[%clk 0:01:22]}  d6 {[%clk 0:02:26]} 14. Bd4 {[%clk 0:01:20]}  Be6 {[%clk 0:02:26]} 15. Bb5+ {[%clk 0:01:14]}  Kd8 {[%clk 0:02:24]} 16. g3 {[%clk 0:00:46]}  Rg8 {[%clk 0:02:21]} 17. Bc4 {[%clk 0:00:45]}  Be7 {[%clk 0:02:21]} 18. Ne4 {[%clk 0:00:38]}  Nc7 {[%clk 0:02:17]} 19. Bxe6 {[%clk 0:00:32]}  fxe6 {[%clk 0:02:18]} 20. Nxd6 {[%clk 0:00:23]}  Bxd6 {[%clk 0:02:17]} 21. Be5 {[%clk 0:00:24]}  Nd5 {[%clk 0:02:14]} 22. Bxd6 {[%clk 0:00:24]}  Kd7 {[%clk 0:02:14]} 23. Be5 {[%clk 0:00:23]}  Kc6 {[%clk 0:02:14]} 24. c4 {[%clk 0:00:22]}  Nb6 {[%clk 0:02:14]} 25. b3 {[%clk 0:00:21]}  Rad8 {[%clk 0:02:14]} 26. Kc2 {[%clk 0:00:20]}  g6 {[%clk 0:02:14]} 27. Rxd8 {[%clk 0:00:19]}  Rxd8 {[%clk 0:02:15]} 28. Rd1 {[%clk 0:00:19]}  Rxd1 {[%clk 0:02:12]} 29. Kxd1 {[%clk 0:00:20]}  Nd7 {[%clk 0:02:11]} 30. Bd4 {[%clk 0:00:21]}  e5 {[%clk 0:02:11]} 31. Be3 {[%clk 0:00:20]}  b6 {[%clk 0:02:11]} 32. Kd2 {[%clk 0:00:21]}  Nf6 {[%clk 0:02:06]} 33. Kd3 {[%clk 0:00:21]}  Kd6 {[%clk 0:02:04]} 34. h3 {[%clk 0:00:21]}  Ke6 {[%clk 0:02:01]} 35. Bg5 {[%clk 0:00:19]}  Nd7 {[%clk 0:02:00]} 36. b4 {[%clk 0:00:17]}  Nb8 {[%clk 0:01:54]} 37. Ke4 {[%clk 0:00:11]}  Nc6 {[%clk 0:01:54]} 38. a3 {[%clk 0:00:11]}  Nd4 {[%clk 0:01:49]} 39. Be3 {[%clk 0:00:10]}  Nc2 {[%clk 0:01:48]} 40. Bc1 {[%clk 0:00:10]}  Nd4 {[%clk 0:01:44]} 41. Bb2 {[%clk 0:00:09]}  Ne2 {[%clk 0:01:41]} 42. Bxe5 {[%clk 0:00:08]}  h5 {[%clk 0:01:39]} 43. b5 {[%clk 0:00:08]}  Nc3+ {[%clk 0:01:38]} 44. Bxc3 {[%clk 0:00:08]} 1-0


[Site "https://www.chess.com"]

[Event "Titled Tuesday Blitz February 28 Early 2023"]
[White "Einarsson, Halldor Gretar"]
[Black "Gutkin, Ilya"]
[WhiteFideId "2300150"]
[BlackFideId "16203470"]
[WhiteElo "2126"]
[BlackElo "2265"]
[Result "0-1"]
[Round "10"]
[TimeControl "180+2"]
[Date "2023.02.28"]
[WhiteClock "0:00:03"]
[BlackClock "0:00:18"]

1. d4 {[%clk 0:02:49]}  d6 {[%clk 0:02:57]} 2. c4 {[%clk 0:02:47]}  e5 {[%clk 0:02:56]} 3. Nc3 {[%clk 0:02:46]}  Nf6 {[%clk 0:02:56]} 4. Nf3 {[%clk 0:02:37]}  e4 {[%clk 0:02:31]} 5. Nd2 {[%clk 0:02:28]}  Bf5 {[%clk 0:02:30]} 6. Qb3 {[%clk 0:02:19]}  Qc8 {[%clk 0:02:29]} 7. g3 {[%clk 0:02:16]}  c6 {[%clk 0:02:22]} 8. Bg2 {[%clk 0:02:13]}  e3 {[%clk 0:02:11]} 9. fxe3 {[%clk 0:02:12]}  Be7 {[%clk 0:02:06]} 10. O-O {[%clk 0:02:07]}  Be6 {[%clk 0:01:59]} 11. e4 {[%clk 0:01:52]}  O-O {[%clk 0:01:58]} 12. d5 {[%clk 0:01:46]}  Bg4 {[%clk 0:01:56]} 13. Nf3 {[%clk 0:01:38]}  Nbd7 {[%clk 0:01:54]} 14. h3 {[%clk 0:01:24]}  Nc5 {[%clk 0:01:53]} 15. Qc2 {[%clk 0:01:19]}  Bxh3 {[%clk 0:01:53]} 16. e5 {[%clk 0:01:06]}  dxe5 {[%clk 0:01:23]} 17. Nxe5 {[%clk 0:00:39]}  Bxg2 {[%clk 0:01:22]} 18. Kxg2 {[%clk 0:00:38]}  Bd6 {[%clk 0:01:16]} 19. Nd3 {[%clk 0:00:21]}  cxd5 {[%clk 0:01:12]} 20. cxd5 {[%clk 0:00:19]}  Nce4 {[%clk 0:01:00]} 21. Bf4 {[%clk 0:00:15]}  Bxf4 {[%clk 0:00:56]} 22. Nxf4 {[%clk 0:00:15]}  Re8 {[%clk 0:00:51]} 23. Rac1 {[%clk 0:00:14]}  Qg4 {[%clk 0:00:47]} 24. Qd3 {[%clk 0:00:13]}  Rad8 {[%clk 0:00:42]} 25. Qf3 {[%clk 0:00:13]}  Nd2 {[%clk 0:00:36]} 26. Qxg4 {[%clk 0:00:12]}  Nxg4 {[%clk 0:00:36]} 27. Rfd1 {[%clk 0:00:12]}  Ne3+ {[%clk 0:00:36]} 28. Kf2 {[%clk 0:00:10]}  Nxd1+ {[%clk 0:00:36]} 29. Rxd1 {[%clk 0:00:11]}  Ne4+ {[%clk 0:00:30]} 30. Kf3 {[%clk 0:00:08]}  Nxc3 {[%clk 0:00:29]} 31. bxc3 {[%clk 0:00:08]}  g5 {[%clk 0:00:25]} 32. Nh5 {[%clk 0:00:07]}  Re5 {[%clk 0:00:23]} 33. e4 {[%clk 0:00:04]}  f5 {[%clk 0:00:20]} 34. exf5 {[%clk 0:00:03]}  Kf7 {[%clk 0:00:20]} 35. Kg4 {[%clk 0:00:03]}  h6 {[%clk 0:00:18]} 0-1


[Site "https://www.chess.com"]

[Event "Titled Tuesday Blitz February 28 Early 2023"]
[White "Ardila, Oscar Humberto"]
[Black "Coelho, Ramyres Santana"]
[WhiteFideId "4404742"]
[BlackFideId "2120690"]
[WhiteElo "1946"]
[BlackElo "1888"]
[Result "1-0"]
[Round "10"]
[TimeControl "180+2"]
[Date "2023.02.28"]
[WhiteClock "0:00:19"]
[BlackClock "0:00:54"]

1. d4 {[%clk 0:03:00]}  Nf6 {[%clk 0:02:58]} 2. c4 {[%clk 0:03:00]}  g6 {[%clk 0:02:55]} 3. Nc3 {[%clk 0:03:00]}  d5 {[%clk 0:02:55]} 4. cxd5 {[%clk 0:02:58]}  Nxd5 {[%clk 0:02:56]} 5. e4 {[%clk 0:02:59]}  Nxc3 {[%clk 0:02:56]} 6. bxc3 {[%clk 0:03:00]}  Bg7 {[%clk 0:02:57]} 7. Bc4 {[%clk 0:03:00]}  O-O {[%clk 0:02:57]} 8. Ne2 {[%clk 0:03:00]}  c5 {[%clk 0:02:58]} 9. Be3 {[%clk 0:03:01]}  cxd4 {[%clk 0:02:59]} 10. cxd4 {[%clk 0:03:01]}  Nc6 {[%clk 0:03:00]} 11. O-O {[%clk 0:02:59]}  Na5 {[%clk 0:03:00]} 12. Bd3 {[%clk 0:02:59]}  b6 {[%clk 0:03:00]} 13. Rc1 {[%clk 0:02:57]}  Bb7 {[%clk 0:02:58]} 14. Qd2 {[%clk 0:02:42]}  Rc8 {[%clk 0:02:57]} 15. Rfd1 {[%clk 0:02:40]}  Rxc1 {[%clk 0:02:56]} 16. Rxc1 {[%clk 0:02:37]}  Qd7 {[%clk 0:02:57]} 17. Qb4 {[%clk 0:02:28]}  e6 {[%clk 0:02:52]} 18. Bb5 {[%clk 0:02:21]}  Qd8 {[%clk 0:02:41]} 19. f3 {[%clk 0:01:58]}  Ba8 {[%clk 0:02:40]} 20. Bf4 {[%clk 0:01:43]}  Qh4 {[%clk 0:02:24]} 21. Rc7 {[%clk 0:01:20]}  Rd8 {[%clk 0:02:12]} 22. Bg3 {[%clk 0:01:05]}  Qg5 {[%clk 0:02:08]} 23. Qe7 {[%clk 0:00:55]}  Qe3+ {[%clk 0:02:04]} 24. Bf2 {[%clk 0:00:56]}  Qxf2+ {[%clk 0:01:41]} 25. Kxf2 {[%clk 0:00:54]}  Rf8 {[%clk 0:01:42]} 26. d5 {[%clk 0:00:51]}  exd5 {[%clk 0:01:36]} 27. exd5 {[%clk 0:00:51]}  Bxd5 {[%clk 0:01:37]} 28. Rxa7 {[%clk 0:00:49]}  Bxa2 {[%clk 0:01:35]} 29. Qc7 {[%clk 0:00:43]}  Be6 {[%clk 0:01:30]} 30. Qxb6 {[%clk 0:00:41]}  Nb3 {[%clk 0:01:31]} 31. Bc6 {[%clk 0:00:35]}  Rd8 {[%clk 0:01:28]} 32. Ra8 {[%clk 0:00:35]}  Rxa8 {[%clk 0:01:28]} 33. Bxa8 {[%clk 0:00:35]}  h5 {[%clk 0:01:27]} 34. Qd8+ {[%clk 0:00:35]}  Kh7 {[%clk 0:01:27]} 35. g3 {[%clk 0:00:34]}  Nd2 {[%clk 0:01:24]} 36. Be4 {[%clk 0:00:33]}  Nxe4+ {[%clk 0:01:23]} 37. fxe4 {[%clk 0:00:33]}  Bg4 {[%clk 0:01:22]} 38. Nf4 {[%clk 0:00:31]}  g5 {[%clk 0:01:18]} 39. Nd5 {[%clk 0:00:30]}  Bd4+ {[%clk 0:01:18]} 40. Kg2 {[%clk 0:00:31]}  h4 {[%clk 0:01:14]} 41. gxh4 {[%clk 0:00:29]}  Be5 {[%clk 0:01:07]} 42. Qxg5 {[%clk 0:00:27]}  f6 {[%clk 0:01:04]} 43. Qxg4 {[%clk 0:00:26]}  Kh6 {[%clk 0:01:04]} 44. h5 {[%clk 0:00:25]}  Kh7 {[%clk 0:01:04]} 45. Qg6+ {[%clk 0:00:25]}  Kh8 {[%clk 0:01:04]} 46. h6 {[%clk 0:00:25]}  f5 {[%clk 0:01:03]} 47. h7 {[%clk 0:00:25]}  Bg7 {[%clk 0:01:02]} 48. Ne7 {[%clk 0:00:19]}  f4 {[%clk 0:00:58]} 49. Nf5 {[%clk 0:00:18]}  f3+ {[%clk 0:00:58]} 50. Kh3 {[%clk 0:00:19]}  Be5 {[%clk 0:00:54]} 51. Qg8# {[%clk 0:00:19]} 1-0


[Site "https://www.chess.com"]

[Event "Titled Tuesday Blitz February 28 Early 2023"]
[White "Kuchava, Ana"]
[Black "Vaglio Munoz, Jaime"]
[WhiteFideId "13605348"]
[BlackFideId "6500145"]
[WhiteElo "2001"]
[BlackElo "2199"]
[Result "1-0"]
[Round "10"]
[TimeControl "180+2"]
[Date "2023.02.28"]
[WhiteClock "0:00:33"]
[BlackClock "0:01:22"]

1. d4 {[%clk 0:03:00]}  c6 {[%clk 0:02:59]} 2. Nf3 {[%clk 0:02:58]}  g6 {[%clk 0:02:57]} 3. c4 {[%clk 0:02:57]}  b5 {[%clk 0:02:56]} 4. cxb5 {[%clk 0:02:57]}  cxb5 {[%clk 0:02:57]} 5. e4 {[%clk 0:02:57]}  Bb7 {[%clk 0:02:57]} 6. Bd3 {[%clk 0:02:53]}  a6 {[%clk 0:02:54]} 7. O-O {[%clk 0:02:52]}  Nf6 {[%clk 0:02:54]} 8. Qe2 {[%clk 0:02:52]}  Nc6 {[%clk 0:02:51]} 9. a4 {[%clk 0:02:52]}  Nb4 {[%clk 0:02:47]} 10. e5 {[%clk 0:02:46]}  Nxd3 {[%clk 0:02:47]} 11. Qxd3 {[%clk 0:02:45]}  Nd5 {[%clk 0:02:39]} 12. axb5 {[%clk 0:02:45]}  axb5 {[%clk 0:02:40]} 13. Rxa8 {[%clk 0:02:44]}  Qxa8 {[%clk 0:02:41]} 14. Qxb5 {[%clk 0:02:42]}  Ba6 {[%clk 0:02:40]} 15. Qa5 {[%clk 0:02:36]}  e6 {[%clk 0:02:39]} 16. Bd2 {[%clk 0:02:31]}  Ke7 {[%clk 0:02:33]} 17. Nc3 {[%clk 0:02:13]}  Qb7 {[%clk 0:02:31]} 18. Nxd5+ {[%clk 0:02:11]}  exd5 {[%clk 0:02:29]} 19. Ra1 {[%clk 0:02:08]}  Bb5 {[%clk 0:02:28]} 20. Bg5+ {[%clk 0:02:06]}  f6 {[%clk 0:02:23]} 21. Bxf6+ {[%clk 0:02:05]}  Kf7 {[%clk 0:02:24]} 22. Bxh8 {[%clk 0:02:04]}  Bc4 {[%clk 0:02:20]} 23. Ng5+ {[%clk 0:01:48]}  Kg8 {[%clk 0:02:18]} 24. Bf6 {[%clk 0:01:27]}  h6 {[%clk 0:02:17]} 25. Qd8 {[%clk 0:01:18]}  Qxb2 {[%clk 0:02:09]} 26. Re1 {[%clk 0:00:55]}  Qb4 {[%clk 0:02:08]} 27. Nf3 {[%clk 0:00:48]}  g5 {[%clk 0:02:05]} 28. Qe8 {[%clk 0:00:48]}  Bd3 {[%clk 0:01:28]} 29. h3 {[%clk 0:00:47]}  Be4 {[%clk 0:01:26]} 30. Rxe4 {[%clk 0:00:35]}  dxe4 {[%clk 0:01:26]} 31. Qg6+ {[%clk 0:00:33]}  Bg7 {[%clk 0:01:22]} 32. Qxg7# {[%clk 0:00:33]} 1-0


[Site "https://www.chess.com"]

[Event "Titled Tuesday Blitz February 28 Early 2023"]
[White "Korpics, Zsolt"]
[Black "Fabris, Alberto"]
[WhiteFideId "705241"]
[BlackFideId "801348"]
[WhiteElo "2342"]
[BlackElo "2141"]
[Result "0-1"]
[Round "10"]
[TimeControl "180+2"]
[Date "2023.02.28"]
[WhiteClock "0:00:10"]
[BlackClock "0:00:30"]

1. e4 {[%clk 0:03:00]}  c5 {[%clk 0:03:00]} 2. Nf3 {[%clk 0:03:00]}  d6 {[%clk 0:03:00]} 3. d4 {[%clk 0:03:01]}  cxd4 {[%clk 0:03:01]} 4. Nxd4 {[%clk 0:03:01]}  Nf6 {[%clk 0:03:01]} 5. Nc3 {[%clk 0:03:02]}  a6 {[%clk 0:03:02]} 6. h3 {[%clk 0:03:03]}  e6 {[%clk 0:03:01]} 7. g4 {[%clk 0:03:02]}  Be7 {[%clk 0:03:00]} 8. Bg2 {[%clk 0:03:01]}  Qc7 {[%clk 0:02:57]} 9. O-O {[%clk 0:03:01]}  Nc6 {[%clk 0:02:56]} 10. g5 {[%clk 0:02:56]}  Nd7 {[%clk 0:02:55]} 11. Be3 {[%clk 0:02:57]}  Nde5 {[%clk 0:02:53]} 12. Nce2 {[%clk 0:02:27]}  Bd7 {[%clk 0:02:50]} 13. b3 {[%clk 0:02:26]}  Nxd4 {[%clk 0:02:39]} 14. Nxd4 {[%clk 0:02:25]}  Nc6 {[%clk 0:02:38]} 15. Ne2 {[%clk 0:02:17]}  O-O {[%clk 0:02:34]} 16. f4 {[%clk 0:02:15]}  Rfe8 {[%clk 0:02:22]} 17. Ng3 {[%clk 0:02:12]}  Rad8 {[%clk 0:02:11]} 18. Qh5 {[%clk 0:02:08]}  Bf8 {[%clk 0:02:07]} 19. Qf3 {[%clk 0:02:03]}  d5 {[%clk 0:02:04]} 20. h4 {[%clk 0:01:18]}  dxe4 {[%clk 0:01:59]} 21. Nxe4 {[%clk 0:01:19]}  Ne7 {[%clk 0:01:56]} 22. Bd4 {[%clk 0:01:06]}  Nf5 {[%clk 0:01:54]} 23. Bb2 {[%clk 0:01:06]}  Bc6 {[%clk 0:01:50]} 24. Qc3 {[%clk 0:01:00]}  Nxh4 {[%clk 0:01:43]} 25. Bf3 {[%clk 0:00:24]}  Qxf4 {[%clk 0:01:32]} 26. Nf6+ {[%clk 0:00:18]}  gxf6 {[%clk 0:01:24]} 27. Bxc6 {[%clk 0:00:18]}  Qg4+ {[%clk 0:01:19]} 28. Kh1 {[%clk 0:00:18]}  bxc6 {[%clk 0:01:12]} 29. Rf2 {[%clk 0:00:08]}  Qe4+ {[%clk 0:00:47]} 30. Kh2 {[%clk 0:00:08]}  Qe5+ {[%clk 0:00:42]} 31. Qxe5 {[%clk 0:00:07]}  fxe5 {[%clk 0:00:43]} 32. Raf1 {[%clk 0:00:04]}  Rd7 {[%clk 0:00:40]} 33. Bxe5 {[%clk 0:00:04]}  Ng6 {[%clk 0:00:40]} 34. Kg3 {[%clk 0:00:04]}  Bg7 {[%clk 0:00:39]} 35. Bxg7 {[%clk 0:00:01]}  Kxg7 {[%clk 0:00:39]} 36. c4 {[%clk 0:00:02]}  Red8 {[%clk 0:00:38]} 37. Kg4 {[%clk 0:00:03]}  Rd4+ {[%clk 0:00:38]} 38. Kg3 {[%clk 0:00:03]}  R8d7 {[%clk 0:00:38]} 39. Kg2 {[%clk 0:00:03]}  Rd2 {[%clk 0:00:36]} 40. Kg3 {[%clk 0:00:03]}  Rxf2 {[%clk 0:00:36]} 41. Rxf2 {[%clk 0:00:03]}  Rd3+ {[%clk 0:00:35]} 42. Kg2 {[%clk 0:00:03]}  e5 {[%clk 0:00:34]} 43. Re2 {[%clk 0:00:04]}  f5 {[%clk 0:00:32]} 44. gxf6+ {[%clk 0:00:04]}  Kxf6 {[%clk 0:00:32]} 45. Rf2+ {[%clk 0:00:04]}  Ke6 {[%clk 0:00:33]} 46. Re2 {[%clk 0:00:05]}  Nf4+ {[%clk 0:00:31]} 47. Kf2 {[%clk 0:00:05]}  Nxe2 {[%clk 0:00:31]} 48. Kxe2 {[%clk 0:00:06]}  Rh3 {[%clk 0:00:30]} 49. Kd2 {[%clk 0:00:07]}  Kf5 {[%clk 0:00:30]} 50. Kc2 {[%clk 0:00:07]}  Ke4 {[%clk 0:00:30]} 51. Kb2 {[%clk 0:00:08]}  Kd4 {[%clk 0:00:30]} 52. b4 {[%clk 0:00:09]}  e4 {[%clk 0:00:30]} 53. b5 {[%clk 0:00:10]}  cxb5 {[%clk 0:00:30]} 54. cxb5 {[%clk 0:00:10]}  axb5 {[%clk 0:00:30]} 0-1


[Site "https://www.chess.com"]

[Event "Titled Tuesday Blitz February 28 Early 2023"]
[White "Tiarks, Jann-Christian"]
[Black "Flis, Pawel"]
[WhiteFideId "12951595"]
[BlackFideId "1112864"]
[WhiteElo "2194"]
[BlackElo "1822"]
[Result "1-0"]
[Round "10"]
[TimeControl "180+2"]
[Date "2023.02.28"]
[WhiteClock "0:00:46"]
[BlackClock "0:00:17"]

1. e4 {[%clk 0:02:56]}  c5 {[%clk 0:03:00]} 2. d4 {[%clk 0:02:45]}  d6 {[%clk 0:03:00]} 3. c3 {[%clk 0:02:42]}  cxd4 {[%clk 0:02:57]} 4. cxd4 {[%clk 0:02:41]}  Nf6 {[%clk 0:02:57]} 5. Nc3 {[%clk 0:02:41]}  g6 {[%clk 0:02:57]} 6. Bg5 {[%clk 0:02:26]}  Bg7 {[%clk 0:02:57]} 7. e5 {[%clk 0:02:26]}  dxe5 {[%clk 0:02:56]} 8. dxe5 {[%clk 0:02:27]}  Qxd1+ {[%clk 0:02:52]} 9. Rxd1 {[%clk 0:02:28]}  Nfd7 {[%clk 0:02:48]} 10. f4 {[%clk 0:02:22]}  O-O {[%clk 0:02:33]} 11. Nd5 {[%clk 0:02:06]}  Nc6 {[%clk 0:02:30]} 12. Nxe7+ {[%clk 0:01:49]}  Nxe7 {[%clk 0:02:28]} 13. Bxe7 {[%clk 0:01:50]}  Re8 {[%clk 0:02:28]} 14. Bd6 {[%clk 0:01:50]}  Nb6 {[%clk 0:02:15]} 15. Bb5 {[%clk 0:01:46]}  Bg4 {[%clk 0:01:49]} 16. Bxe8 {[%clk 0:01:41]}  Bxd1 {[%clk 0:01:49]} 17. Bxf7+ {[%clk 0:01:41]}  Kxf7 {[%clk 0:01:50]} 18. Kxd1 {[%clk 0:01:41]}  Nc4 {[%clk 0:01:47]} 19. Ba3 {[%clk 0:01:30]}  Ne3+ {[%clk 0:01:44]} 20. Ke2 {[%clk 0:01:27]}  Nxg2 {[%clk 0:01:44]} 21. Kf3 {[%clk 0:01:27]}  Nh4+ {[%clk 0:01:44]} 22. Kg4 {[%clk 0:01:26]}  Nf5 {[%clk 0:01:42]} 23. Nf3 {[%clk 0:01:24]}  Rc8 {[%clk 0:01:29]} 24. Ng5+ {[%clk 0:01:22]}  Kg8 {[%clk 0:01:28]} 25. Re1 {[%clk 0:01:09]}  h6 {[%clk 0:01:24]} 26. Ne4 {[%clk 0:01:05]}  Rc2 {[%clk 0:01:16]} 27. Nd6 {[%clk 0:00:57]}  Rxh2 {[%clk 0:01:08]} 28. Nxf5 {[%clk 0:00:56]}  gxf5+ {[%clk 0:01:02]} 29. Kxf5 {[%clk 0:00:56]}  Kf7 {[%clk 0:00:57]} 30. e6+ {[%clk 0:00:56]}  Ke8 {[%clk 0:00:57]} 31. Rc1 {[%clk 0:00:53]}  Kd8 {[%clk 0:00:20]} 32. e7+ {[%clk 0:00:45]}  Kd7 {[%clk 0:00:19]} 33. Rd1+ {[%clk 0:00:45]}  Ke8 {[%clk 0:00:17]} 34. Rd8+ {[%clk 0:00:45]}  Kf7 {[%clk 0:00:17]} 35. e8=Q# {[%clk 0:00:46]} 1-0


[Site "https://www.chess.com"]

[Event "Titled Tuesday Blitz February 28 Early 2023"]
[White "De Souza, Cristiano Gomes"]
[Black "Carrasco Miranda, Andres"]
[WhiteFideId "2151758"]
[BlackFideId "3405990"]
[WhiteElo "2068"]
[BlackElo "2183"]
[Result "0-1"]
[Round "10"]
[TimeControl "180+2"]
[Date "2023.02.28"]
[WhiteClock "0:01:20"]
[BlackClock "0:01:37"]

1. d4 {[%clk 0:03:00]}  Nf6 {[%clk 0:02:59]} 2. c4 {[%clk 0:02:59]}  g6 {[%clk 0:02:59]} 3. Nf3 {[%clk 0:03:00]}  Bg7 {[%clk 0:02:59]} 4. Nc3 {[%clk 0:03:00]}  d5 {[%clk 0:02:59]} 5. Bf4 {[%clk 0:02:59]}  O-O {[%clk 0:02:59]} 6. e3 {[%clk 0:02:58]}  c5 {[%clk 0:02:59]} 7. dxc5 {[%clk 0:02:58]}  Ne4 {[%clk 0:02:59]} 8. Rc1 {[%clk 0:02:59]}  Qa5 {[%clk 0:02:55]} 9. cxd5 {[%clk 0:02:59]}  Na6 {[%clk 0:02:48]} 10. Nd4 {[%clk 0:02:46]}  Naxc5 {[%clk 0:02:45]} 11. Be2 {[%clk 0:02:42]}  Rd8 {[%clk 0:02:43]} 12. O-O {[%clk 0:02:37]}  Nxc3 {[%clk 0:02:41]} 13. bxc3 {[%clk 0:02:37]}  Rxd5 {[%clk 0:02:40]} 14. Bc4 {[%clk 0:02:14]}  Rd8 {[%clk 0:02:28]} 15. Nb3 {[%clk 0:02:11]}  Rxd1 {[%clk 0:02:27]} 16. Nxa5 {[%clk 0:02:10]}  Rxf1+ {[%clk 0:02:27]} 17. Kxf1 {[%clk 0:02:08]}  e5 {[%clk 0:02:19]} 18. Bg5 {[%clk 0:02:05]}  Be6 {[%clk 0:02:17]} 19. Bxe6 {[%clk 0:02:02]}  Nxe6 {[%clk 0:02:18]} 20. Be7 {[%clk 0:01:56]}  Rc8 {[%clk 0:02:09]} 21. Nxb7 {[%clk 0:01:52]}  Rc7 {[%clk 0:02:09]} 22. Nd6 {[%clk 0:01:29]}  Rxe7 {[%clk 0:01:57]} 23. Rb1 {[%clk 0:01:29]}  Rd7 {[%clk 0:01:48]} 24. Rb8+ {[%clk 0:01:27]}  Rd8 {[%clk 0:01:48]} 25. Rxd8+ {[%clk 0:01:24]}  Nxd8 {[%clk 0:01:49]} 26. Nc8 {[%clk 0:01:25]}  Nc6 {[%clk 0:01:48]} 27. e4 {[%clk 0:01:23]}  Bf8 {[%clk 0:01:48]} 28. Ke2 {[%clk 0:01:21]}  Bc5 {[%clk 0:01:48]} 29. f3 {[%clk 0:01:20]}  Kf8 {[%clk 0:01:48]} 30. Kd3 {[%clk 0:01:20]}  Na5 {[%clk 0:01:37]} 0-1


[Site "https://www.chess.com"]

[Event "Titled Tuesday Blitz February 28 Early 2023"]
[White "Estrada Nieto, Julian"]
[Black "Mendez Machado, Andre"]
[WhiteFideId "5101018"]
[BlackFideId "6603793"]
[WhiteElo "2176"]
[BlackElo "1989"]
[Result "1-0"]
[Round "10"]
[TimeControl "180+2"]
[Date "2023.02.28"]
[WhiteClock "0:01:37"]
[BlackClock "0:00:02"]

1. e4 {[%clk 0:03:00]}  e5 {[%clk 0:02:59]} 2. Nf3 {[%clk 0:03:01]}  Nc6 {[%clk 0:02:59]} 3. Bb5 {[%clk 0:03:01]}  a6 {[%clk 0:02:59]} 4. Bxc6 {[%clk 0:03:01]}  dxc6 {[%clk 0:03:00]} 5. O-O {[%clk 0:03:01]}  Bg4 {[%clk 0:03:00]} 6. h3 {[%clk 0:03:01]}  h5 {[%clk 0:02:53]} 7. d3 {[%clk 0:03:01]}  Qf6 {[%clk 0:02:52]} 8. Be3 {[%clk 0:03:01]}  Bxf3 {[%clk 0:02:52]} 9. Qxf3 {[%clk 0:03:01]}  Qxf3 {[%clk 0:02:51]} 10. gxf3 {[%clk 0:03:02]}  Ne7 {[%clk 0:02:46]} 11. Nd2 {[%clk 0:03:02]}  Ng6 {[%clk 0:02:39]} 12. Rfd1 {[%clk 0:03:02]}  Bd6 {[%clk 0:02:39]} 13. Kf1 {[%clk 0:03:03]}  f6 {[%clk 0:02:25]} 14. Ke2 {[%clk 0:03:02]}  Kf7 {[%clk 0:02:25]} 15. a4 {[%clk 0:03:02]}  a5 {[%clk 0:02:25]} 16. Nc4 {[%clk 0:03:02]}  c5 {[%clk 0:02:15]} 17. c3 {[%clk 0:02:56]}  b6 {[%clk 0:02:11]} 18. d4 {[%clk 0:02:46]}  cxd4 {[%clk 0:02:09]} 19. cxd4 {[%clk 0:02:46]}  exd4 {[%clk 0:02:10]} 20. Rxd4 {[%clk 0:02:46]}  Rad8 {[%clk 0:01:17]} 21. Rad1 {[%clk 0:02:46]}  Be7 {[%clk 0:01:06]} 22. f4 {[%clk 0:02:41]}  Rxd4 {[%clk 0:00:57]} 23. Rxd4 {[%clk 0:02:39]}  Rd8 {[%clk 0:00:57]} 24. f5 {[%clk 0:02:40]}  Nf8 {[%clk 0:00:37]} 25. Rxd8 {[%clk 0:02:29]}  Bxd8 {[%clk 0:00:38]} 26. f4 {[%clk 0:02:25]}  g6 {[%clk 0:00:18]} 27. fxg6+ {[%clk 0:02:25]}  Nxg6 {[%clk 0:00:17]} 28. f5 {[%clk 0:02:22]}  Ne7 {[%clk 0:00:12]} 29. Bf4 {[%clk 0:02:12]}  Nc6 {[%clk 0:00:11]} 30. Ne3 {[%clk 0:02:09]}  Ke8 {[%clk 0:00:06]} 31. Nd5 {[%clk 0:02:09]}  Kd7 {[%clk 0:00:07]} 32. Kd3 {[%clk 0:02:03]}  Nb4+ {[%clk 0:00:06]} 33. Nxb4 {[%clk 0:02:02]}  axb4 {[%clk 0:00:06]} 34. Kc4 {[%clk 0:02:03]}  Be7 {[%clk 0:00:06]} 35. e5 {[%clk 0:01:59]}  fxe5 {[%clk 0:00:07]} 36. Bxe5 {[%clk 0:01:59]}  Bf8 {[%clk 0:00:06]} 37. Kb5 {[%clk 0:01:46]}  Be7 {[%clk 0:00:03]} 38. b3 {[%clk 0:01:41]}  Bf8 {[%clk 0:00:03]} 39. Bf4 {[%clk 0:01:38]}  Kc8 {[%clk 0:00:02]} 40. Bd2 {[%clk 0:01:38]}  Kb7 {[%clk 0:00:02]} 41. Bxb4 {[%clk 0:01:37]} 1-0


[Site "https://www.chess.com"]